[Event "SVK ECo-C Extraliga 2021-22"]
[Site "Slovakia"]
[Date "2022.06.10"]
[Round "9.2"]
[White "Pulpan, Jakub"]
[Black "Balogh, Csaba"]
[Result "1/2-1/2"]
[ECO "B22"]
[WhiteElo "2418"]
[BlackElo "2586"]
[Annotator "TA"]
[PlyCount "106"]
[EventDate "2021.10.21"]
[EventType "team-tourn"]
[EventCountry "SVK"]
[SourceTitle "playchess.com"]
[Source "ChessBase"]
[SourceQuality "1"]
[TimeControl "40/5400+30:1800+30"]

{[%evp 13,106,14,5,-25,-14,-42,-33,-29,-23,-47,-51,-47,-66,-40,-42,-44,-32,-32,-32,-33,-16,-81,-79,-86,-89,-83,-79,-77,-89,-83,-87,-96,-87,-96,-96,-96,-96,-96,-96,-96,-96,-96,-63,-96,-96,-96,-96,-96,-96,-96,-96,-96,-96,-96,-34,-97,-97,-97,-97,-97,-97,-97,-97,-97,-97,-97,-97,-97,-97,-97,-97,-97,-97,-97,-97,-97,0,0,0,0,0,0,0,0,0,0,0,0,0,0,0,0,0,0,0]} 1. e4 {[%emt 0:01:47]} c5 {[%emt 0:00:20]} 2. Nf3 {[%emt 0:01:17]} e6 {[%emt 0:00:18]} 3. c3 {[%emt 0:03:10]} d5 {[%emt 0:05:34]} 4. exd5 {[%emt 0:00:12]} Qxd5 {[%emt 0:00:32]} 5. d4 {[%emt 0:00:48]} Nf6 {[%emt 0:00:07]} 6. Be3 {[%emt 0:05:19]} cxd4 {[%emt 0:11:23]} 7. cxd4 {[%emt 0:00:47]} Bb4+ {[%emt 0:06:04]} 8. Nbd2 {[%emt 0:03:23] B22: Sicilian: 2 c3.} O-O {[%emt 0:03:34]} 9. Be2 {[%emt 0:01:22] [#]} b6 $146 {[%emt 0:10:47]} ({Predecessor:} 9... Nbd7 10. O-O b6 11. Qa4 Qa5 12. Qb3 Bxd2 13. Bxd2 Qd5 14. Bc4 Qh5 15. Bf4 Bb7 {1-0 (50) Sezdbekov,R (2043)-Asanakunov,Z (2022) Bishkek 2016}) 10. O-O {[%emt 0:18:15] Black is slightly better.} Ba6 {[%emt 0:03:06]} 11. Bg5 {[%emt 0:09:13]} Bxd2 {[%emt 0:19:56]} 12. Bxf6 {[%emt 0:04:51]} ({Wrong is} 12. Qxd2 $2 Ne4 13. Qe3 Bxe2 14. Qxe2 Nxg5 $19) 12... Bxe2 {[%emt 0:01:05]} 13. Qxe2 {[%emt 0:00:09]} Bb4 {[%emt 0:00:13]} 14. a3 {[%emt 0:06:30]} Bd6 {[%emt 0:00:22]} 15. Be5 {[%emt 0:04:07]} Nc6 {[%emt 0:00:31]} 16. Rac1 {[%emt 0:02:30]} Rfd8 {[%emt 0:01:13][%cal Bf8d8,Bd8d5,Bd5e5][%mdl 32]} 17. Qc4 {[%emt 0:07:34]} (17. Rc3 $11) 17... Bxe5 $17 {[%emt 0:08:01]} 18. dxe5 {[%emt 0:00:53]} Nxe5 {[%emt 0:01:25]} 19. Qxd5 {[%emt 0:00:34]} Rxd5 {[%emt 0:00:04]} 20. Nxe5 {[%emt 0:00:04]} Rxe5 {[%emt 0:00:04][%mdl 4096] Endgame KRR-KRR} 21. Rfd1 {[%emt 0:01:32]} g5 {[%emt 0:01:18]} 22. g3 {[%emt 0:01:22]} a5 {[%emt 0:01:32]} 23. Rd7 {[%emt 0:03:33]} Rb5 {[%emt 0:04:06]} 24. Rcc7 {[%emt 0:07:55]} Rf8 {[%emt 0:00:14]} 25. b4 {[%emt 0:02:30]} axb4 {[%emt 0:00:11]} 26. axb4 {[%emt 0:00:12]} Rxb4 {[%emt 0:00:05]} 27. Rb7 {[%emt 0:00:38]} g4 {[%emt 0:10:05]} 28. Kg2 {[%emt 0:02:49]} Kg7 {[%emt 0:02:31]} 29. h3 {[%emt 0:05:30] [#]} h5 $1 {[%emt 0:01:52]} 30. Rd6 {[%emt 0:02:32][%csl LRb6,LRe6]} Kg6 {[%emt 0:02:15]} 31. Rdxb6 {[%emt 0:01:07]} Rxb6 {[%emt 0:00:15]} 32. Rxb6 {[%emt 0:00:03] KR-KR} Rd8 {[%emt 0:00:08]} 33. Rb4 {[%emt 0:02:46] [#]} f5 {[%emt 0:00:40]} (33... Kg5 $1 $17 34. h4+ Kg6) 34. hxg4 {[%emt 0:01:24]} (34. Ra4 $15) 34... hxg4 {[%emt 0:00:14]} 35. Rb6 {[%emt 0:00:35]} Kf6 {[%emt 0:00:05]} 36. Ra6 {[%emt 0:00:42]} Ke5 {[%emt 0:00:25]} 37. Ra1 {[%emt 0:00:26]} Rd2 {[%emt 0:00:31]} 38. Ra6 {[%emt 0:00:29]} Kd5 {[%emt 0:00:23]} 39. Ra5+ {[%emt 0:00:29]} Ke4 {[%emt 0:00:09]} 40. Ra4+ {[%emt 0:00:20]} Rd4 {[%emt 0:00:34]} 41. Ra6 {[%emt 0:11:28]} e5 {[%emt 0:00:15]} 42. Ra3 {[%emt 0:00:48]} Rc4 {[%emt 0:00:43]} 43. Re3+ {[%emt 0:04:12]} Kd4 {[%emt 0:00:10]} 44. Ra3 {[%emt 0:00:01]} f4 {[%emt 0:14:35]} (44... Kd5 $17 45. Kf1 Rc2) 45. gxf4 $11 {[%emt 0:00:25] The position is equal.} exf4 {[%emt 0:00:05]} 46. Ra8 $1 {[%emt 0:02:32]} Rc2 {[%emt 0:08:53]} 47. Rf8 {[%emt 0:01:54]} Ke5 {[%emt 0:00:27] White must now prevent ...g3.} 48. Re8+ {[%emt 0:00:11]} Kd5 {[%emt 0:00:16]} 49. Rf8 $1 {[%emt 0:00:36]} Ke5 {[%emt 0:01:45] Strongly threatening ...g3.} 50. Re8+ {[%emt 0:00:32]} Kd5 {[%emt 0:01:52] Hoping for ...g3.} 51. Rf8 {[%emt 0:00:38]} g3 {[%emt 0:00:21]} 52. Rxf4 {[%emt 0:00:05]} Rxf2+ {[%emt 0:00:03]} 53. Rxf2 {[%emt 0:00:05]} gxf2 {[%emt 0:00:05] Weighted Error Value: White=0.07 (flawless) /Black=0.06 (flawless)} 1/2-1/2

[Event "SVK ECo-C Extraliga 2021-22"]
[Site "Slovakia"]
[Date "2022.06.10"]
[Round "9.2"]
[White "Kostolansky, Sebastian Lukas"]
[Black "Nemeth, Miklos"]
[Result "1/2-1/2"]
[ECO "C84"]
[WhiteElo "2395"]
[BlackElo "2449"]
[Annotator "TA"]
[PlyCount "54"]
[EventDate "2021.10.21"]
[EventType "team-tourn"]
[EventCountry "SVK"]
[SourceTitle "playchess.com"]
[Source "ChessBase"]
[SourceQuality "1"]
[TimeControl "40/5400+30:1800+30"]

{[%evp 17,54,25,30,27,45,29,28,15,65,7,58,23,56,10,14,18,16,0,10,0,14,0,0,0,0,0,18,11,21,17,33,19,46,26,48,60,102,60,81]} 1. e4 {[%emt 0:00:03]} e5 {[%emt 0:00:07]} 2. Nf3 {[%emt 0:00:13]} Nc6 {[%emt 0:00:02]} 3. Bb5 {[%emt 0:00:34]} a6 {[%emt 0:00:06]} 4. Ba4 {[%emt 0:00:04]} Nf6 {[%emt 0:00:05]} 5. O-O {[%emt 0:00:59]} Be7 {[%emt 0:00:19]} 6. d3 {[%emt 0:15:12]} d6 {[%emt 0:00:59]} 7. c3 {[%emt 0:00:31]} O-O {[%emt 0:00:19]} 8. Re1 {[%emt 0:00:04]} b5 {[%emt 0:00:31]} 9. Bc2 {[%emt 0:01:59]} Re8 {[%emt 0:00:41]} 10. Nbd2 {[%emt 0:01:03][%cal Bb1d2,Bd2f1,Bf1g3][%mdl 32] C84: Closed Ruy Lopez: Unusual White 6th moves.} Bf8 {[%emt 0:00:19]} 11. Nf1 {[%emt 0:02:09]} h6 {[%emt 0:00:52]} 12. Ng3 {[%emt 0:05:14] White has an edge.} g6 {[%emt 0:03:40]} ({Black should try} 12... d5 $11) 13. d4 {[%emt 0:14:10]} (13. Bd2 $14) 13... Bb7 {[%emt 0:01:20] [#]} (13... exd4 $11 14. cxd4 Bg7) 14. d5 $146 {[%emt 0:06:16]} ({Predecessor:} 14. b3 Nd7 15. Be3 Nf6 16. d5 Ne7 17. c4 c6 18. Qe2 cxd5 19. cxd5 Qd7 20. h3 {1-0 (38) Papp,G (2599)-Cvek,R (2537) Slovakia 2016}) 14... Nb8 {[%emt 0:00:11][%cal Bc6b8,Bb8d7,Bd7c5][%mdl 32]} 15. b3 {[%emt 0:00:12]} (15. h4 $14) 15... c6 $11 {[%emt 0:00:20][%cal Rc6d5]} 16. c4 {[%emt 0:00:04]} Nbd7 {[%emt 0:00:23]} 17. Bd3 {[%emt 0:12:06]} Qc7 {[%emt 0:06:44]} 18. Bf1 {[%emt 0:03:43]} Rab8 {[%emt 0:05:14]} 19. Bd2 {[%emt 0:03:19]} bxc4 {[%emt 0:04:10]} 20. bxc4 {[%emt 0:00:52]} ({Reject} 20. dxc6 Bxc6 21. Bxc4 Qb7 $15) 20... Nc5 {[%emt 0:00:08]} 21. Qc1 {[%emt 0:03:08]} Kh7 {[%emt 0:01:03]} 22. Qa3 {[%emt 0:03:00]} Ba8 {[%emt 0:02:17]} 23. Bb4 Nfd7 {[%emt 0:06:04]} 24. Rab1 {[%emt 0:04:54]} Qa7 {[%emt 0:07:31]} 25. Nd2 {[%emt 0:02:13]} Rb6 {[%emt 0:13:49]} 26. Nb3 {[%emt 0:03:30]} Nxb3 {[%emt 0:05:54]} 27. Rxb3 {[%emt 0:00:19]} ({Wrong is} 27. Qxb3 $2 Reb8 28. Qf3 Bg7 29. dxc6 Bxc6 $19) 27... c5 {[%emt 0:03:18] Weighted Error Value: White=0.19 (very precise) /Black=0.17 (very precise)} 1/2-1/2

[Event "SVK ECo-C Extraliga 2021-22"]
[Site "Slovakia"]
[Date "2022.06.10"]
[Round "9.3"]
[White "Kozak, Adam"]
[Black "Jablonicky, Martin"]
[Result "1-0"]
[ECO "E60"]
[WhiteElo "2532"]
[BlackElo "2377"]
[Annotator "TA"]
[PlyCount "117"]
[EventDate "2021.10.21"]
[EventType "team-tourn"]
[EventCountry "SVK"]
[SourceTitle "playchess.com"]
[Source "ChessBase"]
[SourceQuality "1"]
[TimeControl "40/5400+30:1800+30"]

{[%evp 23,117,33,33,30,33,33,43,41,44,42,46,42,37,37,50,48,43,44,56,48,52,58,42,49,52,43,70,77,77,77,77,77,77,77,77,77,90,25,25,25,25,25,25,21,21,22,158,81,144,58,74,25,25,25,25,25,67,25,25,0,68,64,64,64,63,70,62,69,89,89,89,90,90,81,29970,29971,29972,29973,29975,29976,29975,29974,29975,29976,29977,29978,29978,29979,29979,29980,29979,29980,29980,29981,29981,29981]} 1. Nf3 {[%emt 0:00:14]} Nf6 {[%emt 0:00:05]} 2. g3 {[%emt 0:01:10]} g6 {[%emt 0:00:06]} 3. b3 {[%emt 0:00:08]} Bg7 {[%emt 0:00:11]} 4. Bb2 {[%emt 0:00:09]} O-O {[%emt 0:03:09]} 5. Bg2 {[%emt 0:00:24]} d6 {[%emt 0:00:32]} 6. d4 {[%emt 0:00:09]} c5 {[%emt 0:00:05]} 7. c4 {[%emt 0:00:49]} Qa5+ {[%emt 0:00:06]} 8. Bc3 {[%emt 0:06:47]} Qc7 {[%emt 0:00:06]} 9. Nbd2 {[%emt 0:02:25]} cxd4 {[%emt 0:00:36]} 10. Nxd4 {[%emt 0:03:01]} Nc6 {[%emt 0:00:12]} 11. O-O {[%emt 0:02:38]} Nxd4 {[%emt 0:00:54]} 12. Bxd4 {[%emt 0:00:11]} Bd7 {[%emt 0:00:40] [#]} 13. Nb1 $146 {[%emt 0:15:10] E60: King's Indian: Unusual lines and Fianchetto Variation without Nc3.} ({Predecessor:} 13. Rc1 Bc6 14. e4 Nd7 15. Be3 Qa5 16. Qc2 Rfc8 17. Nf3 Nc5 18. Nd4 Bd7 19. Qe2 a6 20. Rc2 b5 {1-0 (46) Lai,H (2459)-Pel,B (2281) Bruges 2018}) 13... Bc6 {[%emt 0:09:47]} 14. Nc3 {[%emt 0:01:30]} Bxg2 {[%emt 0:01:03]} 15. Kxg2 {[%emt 0:00:15] White is slightly better.} Qa5 {[%emt 0:16:37]} 16. Rc1 {[%emt 0:03:37]} Rfe8 {[%emt 0:02:48]} 17. a4 {[%emt 0:06:43]} Rac8 {[%emt 0:03:34]} 18. Qd3 {[%emt 0:06:08]} a6 {[%emt 0:02:11]} 19. Rfd1 {[%emt 0:02:07]} h5 {[%emt 0:05:00]} 20. Qd2 {[%emt 0:04:55]} h4 {[%emt 0:06:37]} 21. f3 {[%emt 0:12:11]} Kh7 {[%emt 0:11:33]} 22. g4 {[%emt 0:05:41]} Bh6 {[%emt 0:03:10]} 23. Be3 {[%emt 0:00:20]} Bxe3 {[%emt 0:00:09]} 24. Qxe3 {[%emt 0:00:07]} Kg7 {[%emt 0:02:16]} 25. Nd5 {[%emt 0:03:47]} Nxd5 {[%emt 0:02:59]} 26. Rxd5 {[%emt 0:00:11]} Rc5 {[%emt 0:00:06]} 27. Rxc5 {[%emt 0:00:20] White is more active.} Qxc5 {[%emt 0:00:07]} 28. Qxc5 {[%emt 0:00:07]} dxc5 $16 {[%emt 0:00:04][%mdl 4096] Endgame KR-KR} 29. Rd1 {[%emt 0:00:07] Against Rd8} b5 {[%emt 0:02:05]} 30. axb5 {[%emt 0:12:02]} ({Of course not} 30. cxb5 axb5 31. a5 (31. axb5 Rb8 $11) 31... Kf6 $11) (30. Rd5 $16) 30... axb5 $11 {[%emt 0:00:12]} 31. Rd5 {[%emt 0:00:03]} bxc4 {[%emt 0:00:14]} 32. bxc4 {[%emt 0:00:04]} Rc8 {[%emt 0:04:21]} 33. Kh3 {[%emt 0:01:35]} e6 {[%emt 0:01:00]} 34. Re5 {[%emt 0:00:16]} Ra8 {[%emt 0:02:57]} (34... Kf6 $11 35. f4 Ke7) 35. Kxh4 {[%emt 0:07:13]} (35. Rxc5 $142 Ra2 36. Kxh4) 35... Ra2 {[%emt 0:00:16]} ({Better is} 35... Ra5) 36. g5 {[%emt 0:05:18]} (36. Kg3 $16) 36... Rc2 {[%emt 0:00:23]} 37. Re4 {[%emt 0:00:19]} ({White should play} 37. Rxc5 $16 {Threatens to win with e4.} Rxe2 38. Kg3) 37... Kf8 {[%emt 0:01:36]} 38. Kg3 {[%emt 0:00:07]} Ke7 {[%emt 0:00:10]} 39. h4 {[%emt 0:01:05]} Kd6 {[%emt 0:00:15]} 40. Rf4 {[%emt 0:00:35]} (40. h5 $5 gxh5 41. Kh4 $16) 40... Ke7 {[%emt 0:00:10]} 41. Re4 {[%emt 0:01:04]} Kd6 {[%emt 0:00:12]} 42. h5 {[%emt 0:02:55]} gxh5 {[%emt 0:00:18]} 43. Kh4 {[%emt 0:00:11]} Rc1 {[%emt 0:00:46]} 44. Kxh5 {[%emt 0:00:12]} Rh1+ {[%emt 0:01:02]} 45. Rh4 {[%emt 0:02:44]} Re1 {[%emt 0:00:07]} 46. Kh6 {[%emt 0:06:51] Black must now prevent Kg7.} Rxe2 {[%emt 0:01:28]} 47. Rf4 $1 {[%emt 0:00:28]} Rh2+ {[%emt 0:02:55]} 48. Kg7 {[%emt 0:00:40]} Rg2 $2 {[%emt 0:00:04][%mdl 8192] [#] This costs Black the game.} (48... Rh5 $16) 49. Rg4 $1 {[%emt 0:01:08] White mates.} Ra2 {[%emt 0:05:15]} 50. Kxf7 {[%emt 0:00:36]} Ke5 {[%emt 0:00:03]} 51. g6 {[%emt 0:07:48]} Ra7+ {[%emt 0:00:07]} 52. Ke8 {[%emt 0:00:10]} ({Not} 52. Kf8 Kf6 53. Ke8 Re7+ 54. Kd8 Rg7 $14) 52... Ra8+ {[%emt 0:00:37] [#]} 53. Kd7 $1 {[%emt 0:00:25]} Ra7+ {[%emt 0:00:05]} 54. Kc6 {[%emt 0:00:09]} Rg7 {[%emt 0:00:05]} 55. Kxc5 {[%emt 0:00:08]} Kf5 {[%emt 0:00:04]} 56. Kb6 {[%emt 0:00:43]} e5 {[%emt 0:00:06]} 57. c5 {[%emt 0:00:09][%cal Bc4c5,Bc5c6][%mdl 32]} e4 {[%emt 0:00:07]} 58. Rxe4 {[%emt 0:00:03]} Rxg6+ {[%emt 0:00:07]} 59. c6 {[%emt 0:00:05] Weighted Error Value: White=0.09 (flawless) /Black=0.24 (precise)} 1-0

[Event "SVK ECo-C Extraliga 2021-22"]
[Site "Slovakia"]
[Date "2022.06.10"]
[Round "9.3"]
[White "Leniart, Arkadiusz"]
[Black "Hrabusa, Matej"]
[Result "1-0"]
[ECO "C03"]
[WhiteElo "2476"]
[BlackElo "2356"]
[Annotator "TA"]
[PlyCount "87"]
[EventDate "2021.10.21"]
[EventType "team-tourn"]
[EventCountry "SVK"]
[SourceTitle "playchess.com"]
[Source "ChessBase"]
[SourceQuality "1"]
[TimeControl "40/5400+30:1800+30"]

{[%evp 18,87,0,0,0,0,0,4,8,-5,5,7,4,6,8,5,6,1,12,4,4,4,15,23,16,20,11,13,25,28,43,42,183,192,202,205,202,179,250,242,328,325,606,596,592,591,593,560,875,846,1209,1164,1131,784,757,707,2063,2117,1620,1378,29971,29971,29984,29985,29986,29987,29987,1543,29988,29989,29989,29990]} 1. e4 {[%emt 0:00:06]} e6 {[%emt 0:00:08]} 2. d4 {[%emt 0:00:18]} d5 {[%emt 0:00:05]} 3. Nd2 {[%emt 0:02:03]} Be7 {[%emt 0:00:20]} 4. Ngf3 {[%emt 0:01:08]} Nf6 {[%emt 0:00:18]} 5. Bd3 {[%emt 0:01:18]} c5 {[%emt 0:01:00]} 6. dxc5 {[%emt 0:00:29]} dxe4 {[%emt 0:01:45]} 7. Nxe4 {[%emt 0:02:51]} Nxe4 {[%emt 0:00:09]} 8. Bxe4 {[%emt 0:00:05]} Qxd1+ {[%emt 0:00:06]} 9. Kxd1 {[%emt 0:00:04]} Bxc5 {[%emt 0:00:14]} 10. Ke2 {[%emt 0:02:28]} Nd7 {[%emt 0:04:43] C03: French Tarrasch: Unusual Black 3rd moves.} 11. Rd1 {[%emt 0:03:15]} Nf6 {[%emt 0:06:23]} 12. Bd3 {[%emt 0:01:01]} Ke7 {[%emt 0:05:39] The position is equal.} 13. a3 {[%emt 0:08:39]} a5 {[%emt 0:02:58] [#]} (13... b6 {is interesting.} 14. Bf4 Rd8 15. c4 Bb7) 14. Ne5 $146 {[%emt 0:04:22]} ({Predecessor:} 14. Bd2 a4 15. Ne5 Nd7 16. Nxd7 Bxd7 17. Bc3 Bc6 18. b4 axb3 19. cxb3 Bd5 20. b4 {½-½ (28) Lee,Q (2272)-Orosz,A (2356) Kecskemet 2016}) 14... Nd7 {[%emt 0:05:57]} 15. Nc4 {[%emt 0:04:45]} b6 {[%emt 0:07:44]} 16. Bg5+ {[%emt 0:05:45]} f6 {[%emt 0:01:09]} 17. Bd2 {[%emt 0:00:06]} Ba6 {[%emt 0:04:43]} 18. b4 {[%emt 0:18:11]} Bd4 {[%emt 0:01:23]} 19. c3 $36 {[%mdl 2048] White has good play.} Rhc8 {[%emt 0:08:15]} 20. cxd4 {[%emt 0:05:51]} Bxc4 {[%emt 0:00:06]} 21. Bxc4 {[%emt 0:00:06]} Rxc4 {[%emt 0:00:05]} 22. Kd3 {[%emt 0:00:12]} Rc7 {[%emt 0:08:30]} 23. Rdc1 {[%emt 0:02:03]} Rxc1 {[%emt 0:03:56]} 24. Rxc1 {[%emt 0:00:07]} axb4 {[%emt 0:02:05] Black cannot hold the game after this.} (24... Kd6 $14) 25. Bxb4+ $11 {[%emt 0:00:24][%mdl 4096] Endgame KRB-KRN} Kd8 {[%emt 0:03:52]} 26. Rc6 {[%emt 0:00:44]} e5 {[%emt 0:05:15] [#]} 27. d5 $1 {[%emt 0:01:30][%cal Bd4d5,Bd5d6][%mdl 32]} b5 {[%emt 0:05:12]} (27... Rb8 $142 28. Kc4 b5+ 29. Kd3 Rb7) 28. Ke4 $18 {[%emt 0:00:54]} g6 {[%emt 0:05:33]} 29. g4 {[%emt 0:01:16] Against f5+} Ke8 $2 {[%emt 0:01:33]} (29... h5 30. g5 fxg5 31. Rxg6 Kc7 32. Bd6+ Kb7) 30. Re6+ {[%emt 0:01:53]} Kd8 {[%emt 0:00:05]} 31. d6 {[%emt 0:03:50]} Ra4 {[%emt 0:06:27]} 32. Kd5 {[%emt 0:01:23] Inhibits Nc5.} e4 {[%emt 0:03:32]} 33. Re7 {[%emt 0:03:51]} f5 {[%emt 0:01:34]} 34. Ke6 {[%emt 0:01:14]} Ra7 {[%emt 0:00:30]} 35. gxf5 {[%emt 0:00:30]} gxf5 {[%emt 0:00:30]} 36. Kxf5 {[%emt 0:00:30]} Ra6 {[%emt 0:01:21]} 37. Rxh7 {[%emt 0:01:46]} Kc8 {[%emt 0:00:04]} 38. Rf7 {[%emt 0:00:52] White wants to mate with Ke6.} Rc6 {[%emt 0:00:23]} 39. Ke6 {[%emt 0:00:20]} Nb8 {[%emt 0:00:17]} 40. h4 {[%emt 0:01:07]} e3 {[%emt 0:00:40]} 41. fxe3 {[%emt 0:31:34]} Rc4 {[%emt 0:31:21]} 42. Rf8+ {[%emt 0:02:09]} Kb7 {[%emt 0:00:06] [#]} 43. Rxb8+ $1 {[%emt 0:00:49]} Kxb8 {[%emt 0:00:06]} 44. d7 {[%emt 0:00:07] Weighted Error Value: White=0.04 (flawless) /Black=0.56} 1-0

[Event "SVK ECo-C Extraliga 2021-22"]
[Site "Slovakia"]
[Date "2022.06.10"]
[Round "9.3"]
[White "Bokros, Albert"]
[Black "Malinovsky, Karel"]
[Result "1/2-1/2"]
[ECO "C77"]
[WhiteElo "2447"]
[BlackElo "2473"]
[Annotator "TA"]
[PlyCount "33"]
[EventDate "2021.10.21"]
[EventType "team-tourn"]
[EventCountry "SVK"]
[SourceTitle "playchess.com"]
[Source "ChessBase"]
[SourceQuality "1"]
[TimeControl "40/5400+30:1800+30"]

{[%evp 16,19,0,-20,10,8]} 1. e4 {[%emt 0:00:04]} e5 {[%emt 0:00:11]} 2. Nf3 {[%emt 0:00:10]} Nc6 {[%emt 0:00:07]} 3. Bb5 {[%emt 0:00:17]} a6 {[%emt 0:00:33]} 4. Ba4 {[%emt 0:00:06]} Nf6 {[%emt 0:00:07]} 5. d3 {[%emt 0:02:24]} d6 {[%emt 0:01:31]} 6. c4 {[%emt 0:00:46]} g6 {[%emt 0:01:25]} 7. Nc3 {[%emt 0:04:17]} Bg7 {[%emt 0:01:04]} 8. h3 {[%emt 0:00:27]} O-O {[%emt 0:02:37]} 9. O-O {[%emt 0:00:44]} Nd7 {[%emt 0:03:38] C77: Ruy Lopez: 3...a6 4 Ba4 Nf6, unusual lines.} 10. Bg5 {[%emt 0:00:50] [#] An uneventful encounter.} {Predecessor:} f6 $146 11. Bh4 Nc5 12. Bxc6 bxc6 13. d4 exd4 14. Nxd4 Qe8 15. Re1 Rb8 16. Rb1 a5 17. Bg3 {½-½ (94) Fedoseev,V (2701)-Kovalev,V (2623) Chess.com INT 2022} 1/2-1/2

[Event "SVK ECo-C Extraliga 2021-22"]
[Site "Slovakia"]
[Date "2022.06.10"]
[Round "9.3"]
[White "Mrva, Martin"]
[Black "Dovzik, Juri"]
[Result "1/2-1/2"]
[ECO "A06"]
[WhiteElo "2383"]
[BlackElo "2277"]
[Annotator "TA"]
[PlyCount "105"]
[EventDate "2021.10.21"]
[EventType "team-tourn"]
[EventCountry "SVK"]
[SourceTitle "playchess.com"]
[Source "ChessBase"]
[SourceQuality "1"]
[TimeControl "40/5400+30:1800+30"]

{[%evp 11,105,-14,0,-14,-9,-4,-9,-20,0,-33,-29,-27,-18,-48,0,-5,0,-45,-15,-19,-15,-5,0,0,2,0,53,54,193,193,219,216,208,209,203,204,184,179,326,132,173,135,179,160,178,167,350,145,135,139,147,122,141,110,99,96,106,25,28,0,113,111,105,103,110,0,0,0,0,0,0,0,0,0,0,0,0,0,0,0,0,0,0,0,0,0,0,0,-8,-8,0,0,0,0,0,0]} 1. Nf3 {[%emt 0:00:08]} d5 {[%emt 0:01:56]} 2. g3 {[%emt 0:00:13]} Nf6 {[%emt 0:00:14]} 3. Bg2 {[%emt 0:00:05]} e6 {[%emt 0:02:10]} 4. O-O {[%emt 0:00:14]} Be7 {[%emt 0:00:09]} 5. d3 {[%emt 0:04:56]} O-O {[%emt 0:03:35]} 6. Nbd2 {[%emt 0:00:25]} b6 {[%emt 0:06:36]} 7. c4 {[%emt 0:05:48] A07: Réti Opening: New York and Capablanca Systems.} Bb7 {[%emt 0:00:27]} 8. cxd5 {[%emt 0:03:16]} exd5 {[%emt 0:03:33]} 9. Re1 {[%emt 0:04:12]} Nbd7 {[%emt 0:01:52] [#]} 10. a4 $146 {[%emt 0:07:10]} ({Predecessor:} 10. e4 dxe4 11. dxe4 Nc5 12. e5 Nd5 13. Nb3 Nb4 14. Nxc5 Bxc5 15. Bg5 Qxd1 16. Rexd1 {0-1 (79) Cipolotti,P (1703)-Cedriano,F (2039) Padova 2005}) 10... a5 {[%emt 0:04:39]} 11. Nd4 {[%emt 0:00:56]} Re8 {[%emt 0:07:21]} 12. Qc2 {[%emt 0:02:28]} c5 {[%emt 0:19:14]} 13. Nb5 {[%emt 0:00:57]} Ne5 {[%emt 0:09:40]} 14. Nb3 {[%emt 0:07:24]} (14. Nf3 $5 {[%cal Rf3e5]} Ng6 15. e3 $11) 14... Nc6 {[%emt 0:13:29]} 15. Bf4 {[%emt 0:03:38]} Nb4 {[%emt 0:00:21]} 16. Qd1 {[%emt 0:06:26]} Na6 {[%emt 0:00:15] Against Bc7} 17. Nd2 {[%emt 0:00:47]} Nh5 {[%emt 0:02:58]} 18. Be5 {[%emt 0:00:36]} f6 {[%emt 0:07:50]} (18... Bf8 $11 19. f4 f6) 19. Bc3 $14 {[%emt 0:00:47]} Qd7 {[%emt 0:02:19]} (19... g6 $1 $14) 20. e4 $1 $18 {[%emt 0:06:06] Black must now prevent exd5.} g6 {[%emt 0:03:19]} 21. Qb3 {[%emt 0:02:53][%cal Re4d5]} c4 {[%emt 0:02:23]} 22. dxc4 {[%emt 0:00:50]} Nc5 {[%emt 0:00:05]} 23. Qc2 {[%emt 0:00:24][%cal Rc4d5]} dxe4 {[%emt 0:03:03]} 24. Nxe4 {[%emt 0:00:12]} Nxe4 {[%emt 0:02:18]} (24... Bxe4 $142 25. Bxe4 Nxe4 26. Rxe4 (26. Qxe4 Bc5 $18) 26... Bc5) 25. Bxe4 {[%emt 0:00:07]} (25. Rad1 $1 $18 {[%cal Rd1d7] is the precise move to win.} Qc8 26. Bxe4) 25... Bxe4 {[%emt 0:01:08]} 26. Rxe4 {[%emt 0:00:36] Hoping for Rd1.} f5 {[%emt 0:01:00]} 27. Re2 {[%emt 0:08:42]} Bc5 {[%emt 0:00:43]} 28. Rd1 {[%emt 0:02:19]} Qf7 {[%emt 0:00:24]} (28... Qc6 {was necessary.} 29. Nd4 Bxd4) 29. Bd4 {[%emt 0:01:16]} (29. Rxe8+ $18 {has better winning chances.} Rxe8 30. Nd6 Bxd6 31. Rxd6) 29... Rxe2 $16 {[%emt 0:00:56]} 30. Qxe2 {[%emt 0:00:07]} Re8 {[%emt 0:00:07]} 31. Qf3 {[%emt 0:05:49] Strongly threatening Bxc5.} Qxc4 {[%emt 0:00:25]} 32. Bxc5 Qxc5 {[%emt 0:00:06]} 33. Nd6 {[%emt 0:01:31][%cal Bb5d6,Bd6c4,Bc4b6][%mdl 32]} Re7 {[%emt 0:01:02] [#]} 34. Qa8+ {[%emt 0:02:34]} (34. Rd5 $1 $16 {[%cal Rd5c5]} Qb4 {[#]} 35. Nxf5 $1 {[%mdl 512]} gxf5 36. Rd8+ (36. Qxh5 $2 Re1+ 37. Kg2 Qe4+ 38. Kh3 Qxd5 $19) (36. Qxf5 Nf6 $17) 36... Kg7 37. Qxh5) 34... Kg7 $11 {[%emt 0:00:08]} 35. Qd8 {[%emt 0:00:21]} Qe5 {[%emt 0:00:24]} (35... Re2 $1 $11 36. Qd7+ (36. Rf1 Nf6 $11) 36... Kh8 37. Nf7+ Kg8 38. Nh6+ Kh8 39. Nf7+ (39. Qd8+ $2 Kg7 $19) 39... Kg8 40. Nh6+ Kh8 41. Nf7+ (41. Qd8+ $2 Kg7 $19)) 36. Nc4 {[%emt 0:00:52] 0x0.001aa04d6054dp-1022s more active pieces.} Qe2 {[%emt 0:00:33]} 37. Nxb6 {[%emt 0:03:30][%cal Od8e7]} ({Much worse is} 37. Ne3 $6 Rxe3 38. Rd7+ (38. fxe3 Qxe3+ 39. Kg2 Qe2+ 40. Kh1 Qf3+ 41. Kg1 Qe3+ 42. Kg2 Qe2+ 43. Kh1 Qf3+ 44. Kg1 Qe3+ $11) 38... Kh6 39. fxe3 Qxe3+ 40. Kh1 (40. Kf1 Qf3+ 41. Kg1 Qe3+ 42. Kh1 Qe1+ 43. Kg2 Qe2+ 44. Kg1 Qe1+ 45. Kg2 Qe2+ 46. Kg1 Qe3+ $11) 40... Qf3+ 41. Kg1 Qe3+ 42. Kh1 (42. Kf1 Qf3+ 43. Kg1 Qe3+ $11) 42... Qf3+ 43. Kg1 Qe3+ $11) 37... Nf6 {[%emt 0:00:11]} 38. Qd4 {[%emt 0:00:27]} ({Better is} 38. Rc1 $16) 38... Re4 $1 {[%emt 0:00:13] The position is equal.} 39. Qd2 {[%emt 0:02:54]} Qxd2 40. Rxd2 {[%emt 0:00:05][%mdl 4096] Endgame KRN-KRN} Rb4 {[%emt 0:01:09]} 41. Nd5 {[%emt 0:35:44]} Nxd5 42. Rxd5 {[%emt 0:00:27]} Rxa4 {[%emt 0:30:44] KR-KR} 43. Rd7+ {[%emt 0:01:56]} Kh6 {[%emt 0:00:00]} 44. Rb7 {[%emt 0:00:00]} Rc4 {[%emt 0:00:00]} 45. h4 {[%emt 0:00:00]} a4 {[%emt 0:00:00]} 46. Kg2 {[%emt 0:00:00]} Rd4 {[%emt 0:00:00]} 47. f3 {[%emt 0:00:00]} Rd2+ {[%emt 0:00:00]} 48. Kf1 {[%emt 0:00:00]} Rc2 {[%emt 0:00:00]} 49. g4 {[%emt 0:00:00]} fxg4 {[%emt 0:00:00]} 50. fxg4 {[%emt 0:00:00]} g5 {[%emt 0:00:00]} 51. Rb6+ {[%emt 0:00:00]} Kg7 {[%emt 0:00:00]} 52. hxg5 {[%emt 0:00:00]} Rc4 {[%emt 0:00:00]} 53. Kf2 {[%emt 0:00:00] Black escapes into a draw.  Weighted Error Value: White=0.22 (precise) /Black=0.26 (precise)} 1/2-1/2